fUST/lending_fUST_20240919
["ID","MTS","AMOUNT","RATE_DAILY","PERIOD"]
[338587875,1726751443486,-500.0,0.00016438,2]
[338587876,1726751443496,-500.0,0.00016438,2]
[338587877,1726751443506,-326.424278,0.00016438,2]
[338587878,1726751443515,-326.424278,0.00016438,2]
[338587879,1726751443525,-500.0,0.00016438,2]
[338587880,1726751443535,-500.0,0.00016438,2]
[338587881,1726751443545,-500.0,0.00016438,2]
[338587882,1726751443554,-500.0,0.00016438,2]
[338587883,1726751443565,-375.976776,0.00016438,2]
[338587884,1726751443574,-500.0,0.00016438,2]
[338587885,1726751443585,-151.0,0.00016438,2]
[338587886,1726751443595,-375.976776,0.00016438,2]
[338587887,1726751443606,-500.0,0.00016438,2]
[338587888,1726751443615,-151.0,0.00016438,2]
[338587889,1726751443627,-500.67401048,0.00016438,2]
[338587890,1726751443637,-500.0,0.00016438,2]
[338587891,1726751443647,-307.16368999,0.00016438,2]
[338587892,1726751443657,-375.976776,0.00016438,2]
[338587893,1726751443667,-375.976776,0.00016438,2]
[338587894,1726751443677,-500.0,0.00016438,2]
[338587895,1726751443687,-546.62,0.00016438,2]
[338587896,1726751443697,-500.0,0.00016438,2]
[338587897,1726751443707,-500.0,0.00016438,2]
[338587898,1726751443717,-500.0,0.00016438,2]
[338587899,1726751443727,-500.0,0.00016438,2]
[338587900,1726751443739,-500.0,0.00016438,2]
[338587901,1726751443750,-1824.84,0.00016438,2]
[338587902,1726751443760,-173.66,0.00016438,2]
[338587903,1726751443769,-1717.1,0.00016438,2]
[338587904,1726751443779,-500.0,0.00016438,2]
[338587905,1726751443796,-500.0,0.00016438,2]
[338587906,1726751443808,-627.7,0.00016438,2]
[338587907,1726751443820,-500.0,0.00016438,2]
[338587908,1726751443830,-500.0,0.00016438,2]
[338587909,1726751443840,-500.0,0.00016438,2]
[338587910,1726751443850,-500.0,0.00016438,2]
[338587911,1726751443861,-500.0,0.00016438,2]
[338587912,1726751443871,-1406.63,0.00016438,2]
[338587913,1726751443883,-218.878831,0.00016438,2]
[338587914,1726751443893,-151.0,0.00016438,2]
[338587915,1726751443903,-218.878831,0.00016438,2]
[338587916,1726751443913,-258.713938,0.00016438,2]
[338587917,1726751443923,-500.0,0.00016438,2]
[338587918,1726751443934,-505.95510883,0.00016438,2]
[338587919,1726751443944,-500.0,0.00016438,2]
[338587920,1726751443954,-218.878831,0.00016438,2]
[338587921,1726751443964,-218.878831,0.00016438,2]
[338587922,1726751443975,-500.0,0.00016438,2]
[338587923,1726751443987,-500.0,0.00016438,2]
[338587924,1726751443996,-500.0,0.00016438,2]
[338587925,1726751444006,-608.73,0.00016438,2]
[338587926,1726751444016,-500.0,0.00016438,2]
[338587927,1726751444027,-151.0,0.00016438,2]
[338587928,1726751444036,-151.491314,0.00016438,2]
[338587929,1726751444047,-2382.96,0.00016438,2]
[338587930,1726751444057,-500.0,0.00016438,2]
[338587931,1726751444067,-895.1,0.00016438,2]
[338587932,1726751444077,-261.392512,0.00016438,2]
[338587933,1726751444087,-261.392512,0.00016438,2]
[338587934,1726751444098,-500.0,0.00016438,2]
[338587935,1726751444109,-151.0,0.00016438,2]
[338587936,1726751444119,-151.0,0.00016438,2]
[338587937,1726751444243,-1031.01,0.00016438,2]
[338587938,1726751444252,-454.33808332,0.00016438,2]
[338587939,1726751444263,-689.06,0.00016438,2]
[338587940,1726751444274,-261.392512,0.00016438,2]
[338587941,1726751444284,-261.392512,0.00016438,2]
[338587942,1726751444295,-151.0,0.00016438,2]
[338587943,1726751444304,-151.0,0.00016438,2]
[338587944,1726751444313,-1326.0,0.00016438,2]
[338587945,1726751444322,-500.0,0.00016438,2]
[338587946,1726751444332,-710.33,0.00016438,2]
[338587947,1726751444341,-500.0,0.00016438,2]
[338587948,1726751444351,-1452.33,0.00016438,2]
[338587949,1726751444362,-724.95,0.00016438,2]
[338587950,1726751444371,-785.44,0.00016438,2]
[338587951,1726751444381,-500.0,0.00016438,2]
[338587952,1726751444390,-857.98,0.00016438,2]
[338587953,1726751444400,-500.0,0.00016438,2]
[338587954,1726751444410,-610.34,0.00016438,2]
[338587955,1726751444420,-151.0,0.00016438,2]
[338587956,1726751444431,-151.0,0.00016438,2]
[338587957,1726751444441,-591.6,0.00016438,2]
[338587958,1726751444451,-500.0,0.00016438,2]
[338587959,1726751444462,-500.0,0.00016438,2]
[338587960,1726751444472,-500.0,0.00016438,2]
[338587961,1726751444482,-151.0,0.00016438,2]
[338587962,1726751444493,-151.0,0.00016438,2]
[338587963,1726751444503,-2085.02,0.00016438,2]
[338587964,1726751444512,-500.0,0.00016438,2]
[338587965,1726751444522,-842.78,0.00016438,2]
[338587966,1726751444531,-500.0,0.00016438,2]
[338587967,1726751444540,-500.0,0.00016438,2]
[338587968,1726751444550,-151.0,0.00016438,2]
[338587969,1726751444561,-151.0,0.00016438,2]
[338587970,1726751444570,-500.0,0.00016438,2]
[338587971,1726751444579,-151.0,0.00016438,2]
[338587972,1726751444588,-151.0,0.00016438,2]
[338587973,1726751444598,-500.0,0.00016438,2]
[338587974,1726751444608,-1413.95,0.00016438,2]
[338587975,1726751444617,-724.79,0.00016438,2]
[338587976,1726751444630,-500.0,0.00016438,2]
[338587977,1726751444639,-500.0,0.00016438,2]
[338587978,1726751444649,-500.0,0.00016438,2]
[338587979,1726751444659,-500.0,0.00016438,2]
[338587980,1726751444668,-500.0,0.00016438,2]
[338587981,1726751444678,-500.0,0.00016438,2]
[338587982,1726751444687,-5000.0,0.00016438,2]
[338587983,1726751444697,-5000.0,0.00016438,2]
[338587984,1726751444706,-2195.26,0.00016438,2]
[338587985,1726751444716,-5000.0,0.00016438,2]
[338587986,1726751444725,-5000.0,0.00016438,2]
[338587987,1726751444735,-5000.0,0.00016438,2]
[338587988,1726751444748,-500.0,0.00016438,2]
[338587989,1726751444757,-5000.0,0.00016438,2]
[338587990,1726751444767,-500.0,0.00016438,2]
[338587991,1726751444778,-5000.0,0.00016438,2]
[338587992,1726751444787,-2497.82809,0.00016438,2]
[338587993,1726751444797,-500.0,0.00016438,2]
[338587994,1726751444806,-500.0,0.00016438,2]
[338587995,1726751444816,-500.0,0.00016438,2]
[338587996,1726751444826,-500.0,0.00016438,2]
[338587997,1726751444835,-500.0,0.00016438,2]
[338587998,1726751444845,-842.23,0.00016438,2]
[338587999,1726751444854,-484.77383694,0.00016438,2]
[338588000,1726751444863,-599.3,0.00016438,2]
[338588001,1726751444873,-500.0,0.00016438,2]
[338588002,1726751444882,-151.0,0.00016438,2]
[338588003,1726751444891,-151.0,0.00016438,2]
[338588004,1726751444901,-549.48,0.00016438,2]
[338588005,1726751444911,-500.0,0.00016438,2]
[338588006,1726751444920,-929.97,0.00016438,2]
[338588007,1726751444930,-151.0,0.00016438,2]
[338588008,1726751444940,-225.603181,0.00016438,2]
[338588009,1726751444949,-500.0,0.00016438,2]
[338588010,1726751444958,-500.0,0.00016438,2]
[338588011,1726751444968,-1502.86,0.00016438,2]
[338588012,1726751444977,-1502.86,0.00016438,2]
[338588013,1726751444987,-1502.86,0.00016438,2]
[338588014,1726751444996,-1502.86,0.00016438,2]
[338588015,1726751445006,-1502.86,0.00016438,2]
[338588016,1726751445018,-1502.86,0.00016438,2]
[338588017,1726751445028,-500.0,0.00016438,2]
[338588018,1726751445037,-1502.86,0.00016438,2]
[338588019,1726751445046,-1502.86,0.00016438,2]
[338588020,1726751445056,-1502.86,0.00016438,2]
[338588021,1726751445065,-1502.86,0.00016438,2]
[338588022,1726751445074,-1502.86,0.00016438,2]
[338588023,1726751445084,-1502.86,0.00016438,2]
[338588024,1726751445093,-1502.86,0.00016438,2]
[338588025,1726751445103,-1502.86,0.00016438,2]
[338588026,1726751445112,-1502.86,0.00016438,2]
[338588027,1726751445122,-1108.79,0.00016438,2]
[338588028,1726751445139,-1502.86,0.00016438,2]
[338588029,1726751445148,-151.0,0.00016438,2]
[338588030,1726751445158,-1502.86,0.00016438,2]
[338588031,1726751445168,-151.0,0.00016438,2]
[338588032,1726751445177,-1502.86,0.00016438,2]
[338588033,1726751445187,-501.86,0.00016438,2]
[338588034,1726751445196,-1502.86,0.00016438,2]
[338588035,1726751445205,-1502.86,0.00016438,2]
[338588036,1726751445214,-518.89,0.00016438,2]
[338588037,1726751445223,-1502.86,0.00016438,2]
[338588038,1726751445233,-200.0,0.00016438,2]
[338588039,1726751445243,-431.3946795,0.00016438,2]
[338588040,1726751445602,-1071.4653205,0.00016438,2]
[338588041,1726751445611,-1502.86,0.00016438,2]
[338588042,1726751445620,-1502.97110881,0.00016438,2]
[338588043,1726751445631,-500.0,0.00016438,2]
[338588044,1726751445641,-500.0,0.00016438,2]
[338588045,1726751445650,-233.08817321,0.00016438,2]
[338588047,1726751445659,-500.0,0.00016438,2]
[338588048,1726751445668,-500.0,0.00016438,2]
[338588049,1726751445677,-514.50119356,0.00016438,2]
[338588050,1726751445686,-1623.58,0.00016438,2]
[338588051,1726751445695,-1257.11,0.00016438,2]
[338588052,1726751445704,-500.0,0.00016438,2]
[338588053,1726751445713,-500.0,0.00016438,2]
[338588054,1726751445725,-500.0,0.00016438,2]
[338588055,1726751445738,-1662.77,0.00016438,2]
[338588056,1726751445750,-500.0,0.00016438,2]
[338588057,1726751445759,-151.0,0.00016438,2]
[338588058,1726751445768,-500.0,0.00016438,2]
[338588059,1726751445777,-408.32711003,0.00016438,2]
[338588060,1726751445788,-500.0,0.00016438,2]
[338588061,1726751445798,-508.00691781,0.00016438,2]
[338588063,1726751445807,-771.35,0.00016438,2]
[338588065,1726751445818,-1378.6,0.00016438,2]
[338588066,1726751445830,-500.0,0.00016438,2]
[338588067,1726751445840,-500.0,0.00016438,2]
[338588068,1726751445849,-654.89,0.00016438,2]
[338588070,1726751445859,-500.0,0.00016438,2]
[338588072,1726751445868,-888.37,0.00016438,2]
[338588074,1726751445879,-500.0,0.00016438,2]
[338588076,1726751445890,-500.0,0.00016438,2]
[338588077,1726751445900,-758.8,0.00016438,2]
[338588078,1726751445910,-500.0,0.00016438,2]
[338588079,1726751445920,-500.0,0.00016438,2]
[338588080,1726751445930,-500.0,0.00016438,2]
[338588081,1726751445940,-528.9,0.00016438,2]
[338588082,1726751445950,-500.0,0.00016438,2]
[338588083,1726751445961,-500.0,0.00016438,2]
[338588084,1726751445970,-500.0,0.00016438,2]
[338588085,1726751445979,-500.0,0.00016438,2]
[338588087,1726751445990,-500.0,0.00016438,2]
[338588088,1726751446001,-500.0,0.00016438,2]
[338588089,1726751446010,-500.0,0.00016438,2]
[338588090,1726751446020,-500.0,0.00016438,2]
[338588091,1726751446030,-500.0,0.00016438,2]
[338588092,1726751446040,-500.0,0.00016438,2]
[338588094,1726751446051,-500.0,0.00016438,2]
[338588095,1726751446060,-500.0,0.00016438,2]
[338588096,1726751446070,-500.0,0.00016438,2]
[338588097,1726751446079,-500.0,0.00016438,2]
[338588098,1726751446089,-561.95637592,0.00016438,2]
[338588099,1726751446098,-500.0,0.00016438,2]
[338588101,1726751446108,-500.0,0.00016438,2]
[338588102,1726751446118,-500.0,0.00016438,2]
[338588103,1726751446129,-162.05,0.00016438,2]
[338588104,1726751446138,-1098.61,0.00016438,2]
[338588105,1726751446148,-500.0,0.00016438,2]
[338588106,1726751446159,-872.57,0.00016438,2]
[338588108,1726751446168,-500.0,0.00016438,2]
[338588109,1726751446177,-500.0,0.00016438,2]
[338588110,1726751446186,-816.82,0.00016438,2]
[338588111,1726751446195,-500.0,0.00016438,2]
[338588112,1726751446204,-500.0,0.00016438,2]
[338588113,1726751446214,-555.98,0.00016438,2]
[338588114,1726751446223,-500.0,0.00016438,2]
[338588115,1726751446232,-500.0,0.00016438,2]
[338588116,1726751446241,-500.0,0.00016438,2]
[338588117,1726751446250,-569.56190587,0.00016438,2]
[338588118,1726751446259,-500.0,0.00016438,2]
[338588119,1726751446269,-648.29,0.00016438,2]
[338588120,1726751446278,-851.97,0.00016438,2]
[338588121,1726751446287,-500.0,0.00016438,2]
[338588122,1726751446296,-965.16,0.00016438,2]
[338588123,1726751446305,-1038.31,0.00016438,2]
[338588124,1726751446314,-178.9865301,0.00016438,2]
[338588125,1726751446323,-500.0,0.00016438,2]
[338588126,1726751446333,-500.0,0.00016438,2]
[338588127,1726751446342,-151.0,0.00016438,2]
[338588128,1726751446352,-151.0,0.00016438,2]
[338588129,1726751446361,-500.0,0.00016438,2]
[338588130,1726751446370,-1994.5,0.00016438,2]
[338588131,1726751446380,-500.0,0.00016438,2]
[338588132,1726751446389,-500.0,0.00016438,2]
[338588133,1726751446399,-784.17,0.00016438,2]
[338588134,1726751446409,-500.0,0.00016438,2]
[338588135,1726751446418,-500.0,0.00016438,2]
[338588136,1726751446427,-500.0,0.00016438,2]
[338588137,1726751446437,-500.0,0.00016438,2]
[338588138,1726751446446,-500.0,0.00016438,2]
[338588139,1726751446455,-500.0,0.00016438,2]
[338588140,1726751446465,-500.0,0.00016438,2]
[338588141,1726751446474,-1829.53,0.00016438,2]
[338588142,1726751446483,-383.353315,0.00016438,2]
[338588143,1726751446493,-500.0,0.00016438,2]
[338588144,1726751446502,-383.353315,0.00016438,2]
[338588145,1726751446511,-1805.33,0.00016438,2]
[338588146,1726751446520,-770.52,0.00016438,2]
[338588147,1726751446529,-500.0,0.00016438,2]
[338588148,1726751446538,-500.0,0.00016438,2]
[338588149,1726751446547,-500.0,0.00016438,2]
[338588150,1726751446556,-500.0,0.00016438,2]
[338588151,1726751446565,-383.353315,0.00016438,2]
[338588152,1726751446575,-383.353315,0.00016438,2]
[338588153,1726751446584,-500.0,0.00016438,2]
[338588154,1726751446593,-872.6,0.00016438,2]
[338588155,1726751446602,-213.77734259,0.00016438,2]
[338588156,1726751446612,-500.0,0.00016438,2]
[338588157,1726751446621,-522.24562387,0.00016438,2]
[338588158,1726751446632,-500.0,0.00016438,2]
[338588159,1726751446641,-922.43,0.00016438,2]
[338588160,1726751446650,-1116.12,0.00016438,2]
[338588161,1726751446659,-500.0,0.00016438,2]
[338588162,1726751446669,-500.0,0.00016438,2]
[338588163,1726751446678,-219.55260321,0.00016438,2]
[338588164,1726751446687,-4129.23,0.00016438,2]
[338588165,1726751446696,-151.0,0.00016438,2]
[338588166,1726751446706,-151.0,0.00016438,2]
[338588167,1726751446716,-500.0,0.00016438,2]
[338588168,1726751446727,-638.85,0.00016438,2]
[338588169,1726751446738,-500.0,0.00016438,2]
[338588170,1726751446751,-500.0,0.00016438,2]
[338588171,1726751446761,-500.0,0.00016438,2]
[338588172,1726751446770,-500.0,0.00016438,2]
[338588173,1726751446779,-899.32,0.00016438,2]
[338588174,1726751446790,-1012.6,0.00016438,2]
[338588175,1726751446799,-500.0,0.00016438,2]
[338588176,1726751446808,-500.0,0.00016438,2]
[338588177,1726751446819,-829.08,0.00016438,2]
[338588178,1726751446828,-529.82,0.00016438,2]
[338588179,1726751446837,-500.0,0.00016438,2]
[338588180,1726751446846,-500.0,0.00016438,2]
[338588181,1726751446855,-899.25,0.00016438,2]
[338588182,1726751446865,-500.0,0.00016438,2]
[338588183,1726751446874,-415.301508,0.00016438,2]
[338588184,1726751446884,-415.301508,0.00016438,2]
[338588185,1726751446893,-500.0,0.00016438,2]
[338588186,1726751446902,-500.0,0.00016438,2]
[338588187,1726751446912,-500.0,0.00016438,2]
[338588188,1726751446922,-283.09805,0.00016438,2]
[338588189,1726751446931,-283.09805,0.00016438,2]
[338588190,1726751446942,-414.79869,0.00016438,2]
[338588191,1726751446951,-415.301508,0.00016438,2]
[338588192,1726751446961,-414.79869,0.00016438,2]
[338588193,1726751446970,-415.301508,0.00016438,2]
[338588194,1726751446979,-500.0,0.00016438,2]
[338588195,1726751446988,-668.48,0.00016438,2]
[338588196,1726751446997,-1025.76,0.00016438,2]
[338588197,1726751447006,-414.79869,0.00016438,2]
[338588198,1726751447016,-184.304993,0.00016438,2]
[338588199,1726751447026,-283.09805,0.00016438,2]
[338588200,1726751447037,-414.79869,0.00016438,2]
[338588201,1726751447049,-184.304993,0.00016438,2]
[338588202,1726751447059,-283.09805,0.00016438,2]
[338588203,1726751447068,-500.0,0.00016438,2]
[338588204,1726751447077,-184.304993,0.00016438,2]
[338588205,1726751447087,-184.304993,0.00016438,2]
[338588206,1726751447096,-500.0,0.00016438,2]
[338588207,1726751447105,-500.0,0.00016438,2]
[338588208,1726751447115,-616.72,0.00016438,2]
[338588209,1726751447124,-500.0,0.00016438,2]
[338588210,1726751447134,-500.0,0.00016438,2]
[338588211,1726751447143,-842.07,0.00016438,2]
[338588212,1726751447152,-500.0,0.00016438,2]
[338588213,1726751447161,-151.0,0.00016438,2]
[338588214,1726751447171,-151.0,0.00016438,2]
[338588215,1726751447180,-500.0,0.00016438,2]
[338588216,1726751447189,-500.0,0.00016438,2]
[338588217,1726751447199,-500.0,0.00016438,2]
[338588218,1726751447209,-500.0,0.00016438,2]
[338588219,1726751447218,-500.0,0.00016438,2]
[338588220,1726751447228,-500.0,0.00016438,2]
[338588221,1726751447237,-731.61,0.00016438,2]
[338588222,1726751447246,-929.1,0.00016438,2]
[338588223,1726751447255,-540.81,0.00016438,2]
[338588224,1726751447265,-500.0,0.00016438,2]
[338588225,1726751447274,-500.0,0.00016438,2]
[338588226,1726751447284,-544.34,0.00016438,2]
[338588227,1726751447294,-563.57,0.00016438,2]
[338588228,1726751447304,-500.0,0.00016438,2]
[338588229,1726751447313,-500.0,0.00016438,2]
[338588230,1726751447322,-500.0,0.00016438,2]
[338588231,1726751447331,-500.0,0.00016438,2]
[338588232,1726751447341,-500.0,0.00016438,2]
[338588233,1726751447350,-500.0,0.00016438,2]
[338588234,1726751447360,-324.21920943,0.00016438,2]
[338588235,1726751447369,-993.64,0.00016438,2]
[338588236,1726751447379,-500.0,0.00016438,2]
[338588237,1726751447389,-500.0,0.00016438,2]
[338588238,1726751447398,-513.55,0.00016438,2]
[338588239,1726751447407,-500.0,0.00016438,2]
[338588240,1726751447417,-500.0,0.00016438,2]
[338588241,1726751447427,-500.0,0.00016438,2]
[338588242,1726751447437,-500.0,0.00016438,2]
[338588243,1726751447447,-500.0,0.00016438,2]
[338588244,1726751447457,-507.52,0.00016438,2]
[338588245,1726751447466,-831.00639,0.00016438,2]
[338588246,1726751447475,-500.0,0.00016438,2]
[338588247,1726751447484,-831.00639,0.00016438,2]
[338588248,1726751447493,-716.23,0.00016438,2]
[338588249,1726751447502,-1694.07,0.00016438,2]
[338588250,1726751447511,-500.0,0.00016438,2]
[338588251,1726751447521,-831.00639,0.00016438,2]
[338588252,1726751447529,-831.00639,0.00016438,2]
[338588253,1726751447539,-500.0,0.00016438,2]
[338588254,1726751447548,-633.31,0.00016438,2]
[338588255,1726751447557,-500.0,0.00016438,2]
[338588256,1726751447567,-500.0,0.00016438,2]
[338588257,1726751447576,-151.0,0.00016438,2]
[338588258,1726751447586,-572.58,0.00016438,2]
[338588259,1726751447595,-829.03,0.00016438,2]
[338588260,1726751447605,-500.0,0.00016438,2]
[338588261,1726751447615,-500.0,0.00016438,2]
[338588262,1726751447624,-1982.125047,0.00016438,2]
[338588263,1726751447634,-500.0,0.00016438,2]
[338588264,1726751447644,-1982.125047,0.00016438,2]
[338588265,1726751447654,-500.0,0.00016438,2]
[338588266,1726751447664,-500.0,0.00016438,2]
[338588267,1726751447673,-500.0,0.00016438,2]
[338588268,1726751447682,-431.218469,0.00016438,2]
[338588269,1726751447691,-431.218469,0.00016438,2]
[338588270,1726751447701,-1982.125047,0.00016438,2]
[338588271,1726751447711,-500.0,0.00016438,2]
[338588272,1726751447721,-1982.125047,0.00016438,2]
[338588273,1726751447730,-500.44329615,0.00016438,2]
[338588274,1726751447742,-921.428501,0.00016438,2]
[338588275,1726751447750,-431.218469,0.00016438,2]
[338588276,1726751447760,-921.428501,0.00016438,2]
[338588277,1726751447769,-874.65,0.00016438,2]
[338588278,1726751447778,-431.218469,0.00016438,2]
[338588279,1726751447788,-500.0,0.00016438,2]
[338588280,1726751447798,-500.0,0.00016438,2]
[338588281,1726751447807,-500.0,0.00016438,2]
[338588282,1726751447819,-151.0,0.00016438,2]
[338588283,1726751447828,-500.0,0.00016438,2]
[338588284,1726751447837,-921.428501,0.00016438,2]
[338588285,1726751447847,-921.428501,0.00016438,2]
[338588286,1726751447856,-1205.62,0.00016438,2]
[338588287,1726751447865,-500.0,0.00016438,2]
[338588288,1726751447875,-500.0,0.00016438,2]
[338588289,1726751447885,-1391.22,0.00016438,2]
[338588290,1726751447895,-500.0,0.00016438,2]
[338588291,1726751447905,-1356.073668,0.00016438,2]
[338588292,1726751447915,-1356.073668,0.00016438,2]
[338588293,1726751447925,-150.0,0.00016438,2]
[338588294,1726751447935,-500.0,0.00016438,2]
[338588295,1726751447945,-68403.31,0.00016438,2]
[338588296,1726751447954,-500.0,0.00016438,2]
[338588297,1726751447964,-1479.532003,0.00016438,2]
[338588298,1726751447973,-1479.532003,0.00016438,2]
[338588299,1726751447983,-1356.073668,0.00016438,2]
[338588300,1726751447992,-1356.073668,0.00016438,2]
[338588301,1726751448001,-500.0,0.00016438,2]
[338588302,1726751448010,-500.0,0.00016438,2]
[338588303,1726751448019,-500.0,0.00016438,2]
[338588304,1726751448029,-151.0,0.00016438,2]
[338588305,1726751448038,-1479.532003,0.00016438,2]
[338588306,1726751448048,-1479.532003,0.00016438,2]
[338588307,1726751448058,-354.463689,0.00016438,2]
[338588308,1726751448068,-354.463689,0.00016438,2]
[338588309,1726751448078,-502.32566225,0.00016438,2]
[338588310,1726751448088,-500.0,0.00016438,2]
[338588311,1726751448097,-500.0,0.00016438,2]
[338588312,1726751448106,-8473.92,0.00016438,2]
[338588313,1726751448224,-354.463689,0.00016438,2]
[338588314,1726751448234,-354.463689,0.00016438,2]
[338588315,1726751448244,-500.0,0.00016438,2]
[338588316,1726751448253,-500.0,0.00016438,2]
[338588317,1726751448263,-500.0,0.00016438,2]
[338588318,1726751448273,-500.0,0.00016438,2]
[338588319,1726751448282,-500.0,0.00016438,2]
[338588320,1726751448292,-657.8,0.00016438,2]
[338588321,1726751448301,-888.11,0.00016438,2]
[338588322,1726751448310,-500.0,0.00016438,2]
[338588323,1726751448319,-500.0,0.00016438,2]
[338588324,1726751448329,-500.0,0.00016438,2]
[338588325,1726751448339,-552.12,0.00016438,2]
[338588326,1726751448348,-151.0,0.00016438,2]
[338588327,1726751448359,-151.0,0.00016438,2]
[338588328,1726751448368,-151.0,0.00016438,2]
[338588329,1726751448380,-151.0,0.00016438,2]
[338588330,1726751448391,-151.0,0.00016438,2]
[338588331,1726751448401,-150.0,0.00016465,2]
[338588332,1726751448411,-500.0,0.00016473,2]
[338588333,1726751448421,-500.0,0.00016473,2]
[338588334,1726751448430,-500.0,0.00016473,2]
[338588335,1726751448441,-500.0,0.00016473,2]
[338588336,1726751448451,-500.20872257,0.00016473,2]
[338588337,1726751448460,-500.0,0.00016473,2]
[338588338,1726751448469,-261.15767013,0.00016473,2]
[338588339,1726751448480,-500.0,0.00016473,2]
[338588340,1726751448489,-500.0,0.00016473,2]
[338588341,1726751448500,-600.01786758,0.00016473,2]
[338588342,1726751448510,-500.0,0.00016473,2]
[338588343,1726751448519,-500.0,0.00016473,2]
[338588344,1726751448529,-199.67272366,0.00016473,2]
[338588345,1726751448539,-500.0,0.00016473,2]
[338588346,1726751448548,-500.0,0.00016473,2]
[338588347,1726751448559,-500.0,0.00016473,2]
[338588348,1726751448568,-500.0,0.00016473,2]
[338588349,1726751448578,-500.0,0.00016473,2]
[338588350,1726751448587,-500.0,0.00016473,2]
[338588351,1726751448596,-500.0,0.00016473,2]
[338588352,1726751448605,-500.0,0.00016473,2]
[338588353,1726751448619,-500.0,0.00016473,2]
[338588354,1726751448630,-200.13184498,0.00016473,2]
[338588355,1726751448640,-500.0,0.00016473,2]
[338588356,1726751448649,-500.0,0.00016473,2]
[338588357,1726751448658,-500.0,0.00016473,2]
[338588358,1726751448668,-613.36858127,0.00016473,2]
[338588359,1726751448678,-500.0,0.00016473,2]
[338588360,1726751448688,-500.0,0.00016473,2]
[338588361,1726751448698,-298.91044868,0.00016473,2]
[338588362,1726751448707,-500.0,0.00016473,2]
[338588363,1726751448717,-500.0,0.00016473,2]
[338588364,1726751448726,-500.0,0.00016473,2]
[338588365,1726751448737,-500.0,0.00016473,2]
[338588366,1726751448750,-500.0,0.00016473,2]
[338588367,1726751448760,-151.0,0.00016473,2]
[338588368,1726751448769,-150.0,0.00016493,2]
[338588369,1726751448779,-150.0,0.0001652,2]
[338588370,1726751448789,-219.42990979,0.00016548,2]
[338588371,1726751448798,-420.0,0.00016642,2]
[338588372,1726751448809,-188.724558,0.00016701,2]
[338588373,1726751448819,-151.0,0.00016701,2]
[338588374,1726751448828,-151.0,0.00016701,2]
[338588375,1726751448839,-151.0,0.00016701,2]
[338588376,1726751448850,-151.0,0.00016701,2]
[338588377,1726751448859,-151.0,0.00016711,2]
[338588378,1726751448869,-8073.74809101,0.00016712,5]
[338588379,1726751449094,-500.0,0.00016438,2]
[338588380,1726751449105,-512.963692,0.00016438,2]
[338588381,1726751449115,-512.963692,0.00016438,2]
[338588382,1726751449124,-500.0,0.00016473,2]
[338588383,1726751449135,-23561.40289731,0.00016712,5]
[338588384,1726751449148,-17389.33640617,0.00016712,5]
[338588385,1726751449158,-151.0,0.00016712,2]